bitfinex-derivatives/quotes_BTCF0:USTF0_20250517
["timestamp","ask_amount","ask_price","bid_price","bid_amount"]
[1747484140617,0.59074216,103000.0,102990.0,0.88494905]
[1747484140809,0.75235236,103000.0,102990.0,0.88494905]
[1747484141012,0.55824216,103000.0,102990.0,0.89968786]
[1747484141208,0.75235236,103000.0,102990.0,0.86279235]
[1747484142011,0.78325236,103000.0,102990.0,0.86279235]
[1747484142211,0.81525236,103000.0,102990.0,0.74218183]
[1747484142524,0.45445236,103000.0,102990.0,0.74286183]
[1747484143019,0.81525236,103000.0,102990.0,0.74286183]
[1747484144017,0.81525236,103000.0,102990.0,0.86347235]
[1747484145623,0.81525236,103000.0,102990.0,0.74286183]
[1747484147424,0.81525236,103000.0,102990.0,0.73860233]
[1747484147624,0.81525236,103000.0,102990.0,0.31884233]
[1747484147822,0.81525236,103000.0,102990.0,0.73860233]
[1747484148027,0.93586288,103000.0,102990.0,0.12471333]
[1747484148215,0.93586288,103000.0,102990.0,0.27622302]
[1747484148930,0.93586288,103000.0,102990.0,0.08209402]
[1747484149114,1.29666288,103000.0,102990.0,0.27622302]
[1747484149417,1.29666288,103000.0,102990.0,0.12560569]
[1747484149639,1.29666288,103000.0,102990.0,0.31973469]
[1747484150322,1.41783314,103000.0,102990.0,0.31973469]
[1747484150724,1.41783314,103000.0,102990.0,0.35163469]
[1747484153927,1.44718629,103000.0,102990.0,0.35163469]
[1747484154728,1.44718629,103000.0,102990.0,0.227029]
[1747484155917,1.44718629,103000.0,102990.0,0.001]
[1747484156120,1.44718629,103000.0,102990.0,0.226529]
[1747484158626,1.44718629,103000.0,102990.0,0.31286156]
[1747484159726,1.44718629,103000.0,102990.0,0.11873256]
[1747484159925,1.44718629,103000.0,102990.0,0.31286156]
[1747484160222,1.44718629,103000.0,102990.0,0.08733256]
[1747484160424,1.71488881,103000.0,102990.0,0.08733256]
[1747484160622,1.49718629,103000.0,102990.0,0.08733256]
[1747484160826,1.80403829,103000.0,102990.0,0.08733256]
[1747484161030,0.1941479,102980.0,102970.0,0.10676926]
[1747484161221,0.67555842,102980.0,102970.0,0.13996926]
[1747484161420,1.10105842,102980.0,102970.0,0.13996926]
[1747484161931,1.10105842,102980.0,102970.0,0.33413596]
[1747484162233,1.28205842,102980.0,102970.0,0.28885923]
[1747484162431,1.28305842,102980.0,102970.0,0.28885923]
[1747484164641,1.28305842,102980.0,102970.0,0.2273667]
[1747484165025,1.1624479,102980.0,102970.0,0.2273667]
[1747484165225,1.40413502,102980.0,102970.0,0.2273667]
[1747484165632,1.40413502,102980.0,102970.0,0.0332]
[1747484169233,1.28305842,102980.0,102970.0,0.0332]
[1747484172630,1.1624479,102980.0,102970.0,0.0332]
[1747484172831,1.28305842,102980.0,102970.0,0.0332]
[1747484173434,1.40413502,102980.0,102970.0,0.0332]
[1747484175137,0.1941856,102960.0,102950.0,0.0019426]
[1747484175443,1.03639612,102960.0,102950.0,0.0366607]
[1747484175637,1.10139612,102960.0,102950.0,0.0366607]
[1747484176242,1.28139612,102960.0,102950.0,0.0366607]
[1747484176442,1.28239612,102960.0,102950.0,0.0396607]
[1747484177541,1.28339612,102960.0,102950.0,0.0436607]
[1747484180642,1.28883828,102960.0,102950.0,0.0436607]
[1747484181238,1.40991488,102960.0,102950.0,0.0436607]
[1747484181642,1.40991488,102960.0,102950.0,0.0760607]
[1747484182742,1.40991488,102960.0,102950.0,0.0436607]
[1747484185148,1.28930436,102960.0,102950.0,0.0436607]
[1747484185330,1.40991488,102960.0,102950.0,0.0436607]
[1747484188331,1.29930436,102960.0,102950.0,0.0436607]
[1747484188637,1.5405254,102960.0,102950.0,0.0436607]
[1747484189147,1.41991488,102960.0,102950.0,0.0436607]
[1747484189348,1.45785856,102960.0,102950.0,0.0436607]
[1747484191250,1.66837856,102960.0,102950.0,0.0436607]
[1747484192942,1.65837856,102960.0,102950.0,0.0436607]
[1747484193143,1.98837856,102960.0,102950.0,0.0436607]
[1747484193746,1.74837856,102960.0,102950.0,0.0436607]
[1747484194249,1.02677856,102960.0,102950.0,0.0436607]
[1747484194451,1.74837856,102960.0,102950.0,0.0436607]
[1747484195153,1.53785856,102960.0,102950.0,0.0436607]
[1747484195753,1.53785856,102960.0,102940.0,0.0315]
[1747484195754,0.1942044,102950.0,102940.0,0.0315]
[1747484195945,0.8080586,102950.0,102940.0,0.0315]
[1747484196252,0.9880586,102950.0,102940.0,0.0315]
[1747484196754,1.0298581,102950.0,102940.0,0.0315]
[1747484196958,1.0298581,102950.0,102940.0,0.0675]
[1747484197159,1.0328581,102950.0,102940.0,0.0705]
[1747484197453,0.922881,102950.0,102940.0,0.2647233]
[1747484197651,1.0021581,102950.0,102940.0,0.0705]
[1747484198354,1.0001581,102950.0,102940.0,0.0655]
[1747484198663,1.0011581,102950.0,102940.0,0.0655]
[1747484198845,1.01088787,102950.0,102940.0,0.0655]
[1747484199044,1.01088787,102950.0,102940.0,0.2908233]
[1747484199759,0.86781077,102950.0,102940.0,0.3701004]
[1747484200058,0.9373581,102950.0,102940.0,0.2908233]
[1747484200253,0.7877581,102950.0,102940.0,0.2908233]
[1747484201149,0.9677581,102950.0,102940.0,0.2908233]
[1747484201344,0.3030766,102950.0,102940.0,0.4493775]
[1747484201550,0.497281,102950.0,102940.0,0.7309004]
[1747484202046,0.3030766,102950.0,102940.0,0.8101775]
[1747484202247,0.317281,102950.0,102940.0,0.7309004]
[1747484202556,0.1962044,102950.0,102940.0,0.77330467]
[1747484204352,0.1962044,102950.0,102940.0,0.85258177]
[1747484204353,0.002,102950.0,102940.0,0.85258177]
[1747484204662,0.1962044,102950.0,102940.0,0.85258177]
[1747484204856,0.1962044,102950.0,102940.0,1.12370467]
[1747484205351,0.1962044,102950.0,102940.0,1.16518047]
[1747484205553,0.1962044,102950.0,102940.0,1.2104572]
[1747484205861,0.1962044,102950.0,102940.0,1.6315772]
[1747484206052,0.1962044,102950.0,102940.0,1.69645644]
[1747484206250,0.15904968,102950.0,102940.0,1.87645644]
[1747484206448,0.65954116,102960.0,102950.0,0.1942044]
[1747484206648,0.65954116,102960.0,102950.0,0.3768573]
[1747484206857,0.56244256,102960.0,102950.0,0.41926157]
[1747484207155,0.00744216,102960.0,102950.0,0.41926157]
[1747484207353,0.00744216,102960.0,102950.0,0.87718957]
[1747484207745,0.00844216,102960.0,102950.0,0.87818957]
[1747484208157,0.00944216,102960.0,102950.0,0.87918957]
[1747484208660,0.00944216,102960.0,102950.0,0.9244663]
[1747484209045,0.00944216,102960.0,102950.0,1.3852192]
[1747484209254,0.554958,102980.0,102970.0,0.3149196]
[1747484209457,0.554958,102980.0,102970.0,0.7359196]
[1747484209651,0.194158,102980.0,102970.0,0.7983196]
[1747484209859,0.36520342,102990.0,102980.0,0.1941478]
[1747484210052,0.36520342,102990.0,102980.0,0.7688007]
[1747484210659,0.1210766,102990.0,102980.0,0.81120497]
[1747484210857,0.1210766,102990.0,102980.0,0.92254581]
[1747484211161,0.36335216,103000.0,102990.0,0.1941289]
[1747484211358,0.36335216,103000.0,102990.0,1.1600418]
[1747484211566,0.55746226,103000.0,102990.0,1.2571338]
[1747484212963,0.2001101,103000.0,102990.0,1.2581338]
[1747484213667,0.2001101,103000.0,102990.0,1.1610418]
[1747484213963,0.006,103000.0,102990.0,1.1610418]
[1747484214155,0.011,103000.0,102990.0,1.2827947]
[1747484214356,0.011,103000.0,102990.0,1.1620418]
[1747484214562,0.011,103000.0,102990.0,1.3927947]
[1747484214757,0.69734057,103020.0,103010.0,0.1940913]
[1747484214957,0.69734057,103020.0,103010.0,0.7360442]
[1747484215262,0.87734057,103020.0,103010.0,0.7998442]
[1747484215659,0.57084137,103020.0,103010.0,0.7998442]
[1747484215856,0.40411377,103020.0,103010.0,1.1606442]
[1747484216056,0.40911377,103020.0,103010.0,1.1606442]
[1747484217062,0.44401377,103020.0,103010.0,0.8008442]
[1747484217261,0.83721377,103020.0,103010.0,0.2588913]
[1747484217457,0.83721377,103020.0,103010.0,0.6800913]
[1747484217657,0.83721377,103020.0,103010.0,0.2588913]
[1747484217850,0.83721377,103020.0,103010.0,0.6801313]
[1747484221560,0.83721377,103020.0,103010.0,0.4694913]
[1747484221761,0.95796667,103020.0,103010.0,0.001]
[1747484224265,0.1941101,103000.0,102990.0,0.65007594]
[1747484224470,0.5549101,103000.0,102990.0,0.44951594]
[1747484224759,0.6181101,103000.0,102990.0,0.44951594]
[1747484224965,0.6181101,103000.0,102990.0,0.57026884]
[1747484225263,0.7981101,103000.0,102990.0,0.57026884]
[1747484225462,0.7981101,103000.0,102990.0,0.37715474]
[1747484225666,0.7981101,103000.0,102990.0,0.13369474]
[1747484225965,1.1589101,103000.0,102990.0,0.22342184]
[1747484226367,1.1589101,103000.0,102990.0,0.21342184]
[1747484226957,1.279663,103000.0,102990.0,0.21342184]
[1747484227266,1.283663,103000.0,102990.0,0.00294184]
[1747484227456,1.287663,103000.0,102990.0,0.00394184]
[1747484228158,1.1669101,103000.0,102990.0,0.00394184]
[1747484229969,1.1669101,103000.0,102990.0,0.19807084]
[1747484230162,1.1669101,103000.0,102990.0,0.35172374]
[1747484230369,1.1669101,103000.0,102990.0,0.15759474]
[1747484230771,1.1669101,103000.0,102990.0,0.56212374]
[1747484231064,1.1669101,103000.0,102990.0,0.24724184]
[1747484231771,1.1669101,103000.0,102990.0,0.44137084]
[1747484232871,1.1669101,103000.0,102990.0,0.56212374]
[1747484233067,1.1669101,103000.0,102990.0,0.62322374]
[1747484235774,1.1669101,103000.0,102990.0,0.41282374]
[1747484236074,1.1669101,103000.0,102990.0,0.62310374]
[1747484240577,1.17235226,103000.0,102990.0,0.62310374]
[1747484242278,1.13955226,103000.0,102990.0,0.62310374]
[1747484242779,0.94544216,103000.0,102990.0,0.62310374]
[1747484242974,0.91504216,103000.0,102990.0,0.74385664]
[1747484243178,0.92915226,103000.0,102990.0,0.74385664]
[1747484243669,0.73504216,103000.0,102990.0,0.78717393]
[1747484243869,0.20755226,103000.0,102990.0,1.14797393]
[1747484245079,0.01344216,103000.0,102990.0,1.14797393]
[1747484245672,0.20755226,103000.0,102990.0,1.14797393]
[1747484245872,0.01344216,103000.0,102990.0,1.14797393]
[1747484246177,0.01344216,103000.0,102990.0,0.93769393]
[1747484246382,0.01344216,103000.0,102990.0,1.14749393]
[1747484247783,0.20755226,103000.0,102990.0,0.93769393]
[1747484247985,0.20755226,103000.0,102990.0,1.14733393]
[1747484248181,0.20755226,103000.0,102990.0,1.27175837]
[1747484248578,0.01344216,103000.0,102990.0,1.27175837]
[1747484248979,0.01344216,103000.0,102990.0,1.40885037]
[1747484249779,0.01344216,103000.0,102990.0,1.51426918]
[1747484250388,0.01344216,103000.0,102990.0,1.27276338]
[1747484250572,0.01344216,103000.0,102990.0,1.51426918]
[1747484251986,0.01344216,103000.0,102990.0,1.72458918]
[1747484253481,0.01344216,103000.0,102990.0,1.62749718]
[1747484253887,0.6161914,103010.0,103000.0,0.3148629]
[1747484254185,0.6161914,103010.0,103000.0,0.3779629]
[1747484254580,0.4221,103010.0,103000.0,0.3779629]
[1747484254782,0.6161913,103010.0,103000.0,0.3779629]
[1747484255190,0.7961913,103010.0,103000.0,0.3779629]
[1747484255389,0.8001913,103010.0,103000.0,0.42228019]
[1747484255789,0.8041913,103010.0,103000.0,0.42328019]
[1747484257391,0.8041913,103010.0,103000.0,0.63244019]
[1747484257992,0.8041913,103010.0,103000.0,0.30252729]
[1747484258195,0.8374913,103010.0,103000.0,0.84164019]
[1747484258387,0.8374913,103010.0,103000.0,0.42328019]
[1747484258587,0.8374913,103010.0,103000.0,0.84168019]
[1747484259088,0.8374913,103010.0,103000.0,0.7983629]
[1747484259590,0.8374913,103010.0,103000.0,0.7677629]
[1747484260792,0.4766913,103010.0,103000.0,0.7986629]
[1747484260991,0.4766913,103010.0,103000.0,0.84795303]
[1747484262792,0.4766913,103010.0,103000.0,1.20875303]
[1747484263093,0.4433913,103010.0,103000.0,1.2520822]
[1747484264192,0.2633913,103010.0,103000.0,1.2520822]
[1747484264691,0.2633912,103010.0,103000.0,1.2520822]
[1747484265186,0.4433912,103010.0,103000.0,1.2519222]
[1747484265392,0.4433912,103010.0,103000.0,1.08187917]
[1747484265593,0.4433912,103010.0,103000.0,1.20263207]
[1747484267093,0.4433912,103010.0,103000.0,0.99359207]
[1747484267291,0.4433912,103010.0,103000.0,1.08171917]
[1747484267592,0.4433912,103010.0,103000.0,1.20247207]
[1747484268597,0.4433912,103010.0,103000.0,1.32659366]
[1747484269709,0.2493,103010.0,103000.0,1.32659366]
[1747484269901,0.44883336,103010.0,103000.0,1.32659366]
[1747484270400,0.44883336,103010.0,103000.0,0.96579366]
[1747484270600,0.44883336,103010.0,103000.0,1.32659366]
[1747484272101,0.44883336,103010.0,103000.0,0.96579366]
[1747484272399,0.44883336,103010.0,103000.0,1.32659366]
[1747484273704,0.44883336,103010.0,103000.0,1.37187039]
[1747484274399,0.44883336,103010.0,103000.0,0.95383039]
[1747484274606,0.44883336,103010.0,103000.0,1.37163039]
[1747484275305,0.44883336,103010.0,103000.0,1.33004916]
[1747484278206,0.44883336,103010.0,103000.0,1.40922083]
[1747484278904,0.25474216,103010.0,103000.0,1.40922083]
[1747484280001,0.44883336,103010.0,103000.0,1.40922083]
[1747484280201,0.44883336,103010.0,103000.0,1.25087749]
[1747484280403,0.44883336,103010.0,103000.0,1.40922083]
[1747484280707,0.25474216,103010.0,103000.0,1.40922083]
[1747484281109,0.44883346,103010.0,103000.0,1.40922083]
[1747484281407,0.44483346,103010.0,103000.0,1.24987749]
[1747484281710,0.44483346,103010.0,103000.0,1.40722083]
[1747484283210,0.26483346,103010.0,103000.0,1.40722083]
[1747484284105,0.0653,103010.0,103000.0,1.40722083]
[1747484284314,0.2593913,103010.0,103000.0,1.40722083]
[1747484285516,0.2593913,103010.0,103000.0,1.41899479]
[1747484287506,0.2593913,103010.0,103000.0,1.05819479]
[1747484287706,0.2593913,103010.0,103000.0,1.41899479]
[1747484288510,0.2593913,103010.0,103000.0,1.21031479]
[1747484288702,0.2593913,103010.0,103000.0,1.41867479]
[1747484289113,0.26483346,103010.0,103000.0,1.26033145]
[1747484289313,0.26483346,103010.0,103000.0,1.41867479]
[1747484289716,0.07074216,103010.0,103000.0,1.41867479]
[1747484289904,0.26483346,103010.0,103000.0,1.41867479]
[1747484290100,0.2593913,103010.0,103000.0,1.41867479]
[1747484291302,0.0352,103010.0,103000.0,1.41867479]
[1747484292098,0.004,103010.0,103000.0,1.56867479]
[1747484292320,0.004,103010.0,103000.0,1.92947479]
[1747484292613,0.09505478,103020.0,103010.0,0.43160631]
[1747484292917,0.15052341,103030.0,103020.0,0.1940725]
[1747484293211,0.2443854,103040.0,103030.0,0.1940536]
[1747484293514,0.2759854,103040.0,103030.0,1.15016527]
[1747484294104,0.4559854,103040.0,103030.0,1.15016527]
[1747484294816,0.4609854,103040.0,103030.0,1.15016527]
[1747484295112,0.25015665,103040.0,103030.0,1.23881117]
[1747484295309,0.25015665,103040.0,103030.0,1.1596395]
[1747484295513,0.44419135,103040.0,103030.0,1.28019292]
[1747484295711,0.25015665,103040.0,103030.0,1.28019292]
[1747484296011,0.25015665,103040.0,103030.0,1.1596395]
[1747484296311,0.25015665,103040.0,103030.0,1.28019292]
[1747484296702,0.44419135,103040.0,103030.0,1.28019292]
[1747484297902,0.44419135,103040.0,103030.0,1.32945025]
[1747484298613,0.44419135,103040.0,103030.0,0.96865025]
[1747484298810,0.44419135,103040.0,103030.0,1.28417352]
[1747484300309,0.44963351,103040.0,103030.0,1.28417352]
[1747484300816,0.25559881,103040.0,103030.0,1.28417352]
[1747484303306,0.25559881,103040.0,103030.0,1.24080435]
[1747484305019,0.44963361,103040.0,103030.0,1.24080435]
[1747484305317,0.25559881,103040.0,103030.0,1.24080435]
[1747484305515,0.25559881,103040.0,103030.0,1.12025093]
[1747484305708,0.25559881,103040.0,103030.0,1.24080435]
[1747484305908,0.22404216,103040.0,103030.0,1.24080435]
[1747484307115,0.04404216,103040.0,103030.0,1.24080435]
[1747484308119,0.25504216,103040.0,103030.0,1.24080435]
[1747484308718,0.25504216,103040.0,103030.0,1.37080435]
[1747484309519,0.19244216,103040.0,103030.0,1.25025093]
[1747484309719,0.19244216,103040.0,103030.0,1.41573167]
[1747484309922,0.22434216,103040.0,103030.0,1.41573167]
[1747484312022,0.22434216,103040.0,103030.0,1.29517825]
[1747484312319,0.22434216,103040.0,103030.0,1.41545167]
[1747484312513,0.25564216,103040.0,103030.0,1.41545167]
[1747484313316,0.25564216,103040.0,103030.0,0.99849167]
[1747484313516,0.25564216,103040.0,103030.0,1.41565167]
[1747484314127,0.25564216,103040.0,103030.0,1.08629825]
[1747484314313,0.25564216,103040.0,103030.0,1.41581167]
[1747484315327,0.25564216,103040.0,103030.0,1.37438022]
[1747484315924,0.44967686,103040.0,103030.0,1.72514022]
[1747484316225,0.44967686,103040.0,103030.0,1.30746022]
[1747484316527,0.44967686,103040.0,103030.0,1.72514022]
[1747484316824,0.25564216,103040.0,103030.0,1.72514022]
[1747484317434,0.25564216,103040.0,103030.0,1.70931667]
[1747484321436,0.44967686,103040.0,103030.0,1.5452734]
[1747484321624,0.44967686,103040.0,103030.0,1.3934334]
[1747484321930,0.44967686,103040.0,103030.0,0.6257134]
[1747484322130,0.44967686,103040.0,103030.0,1.0439134]
[1747484322346,0.48037473,103040.0,103030.0,1.0439134]
[1747484323142,0.48037473,103040.0,103030.0,1.11796483]
[1747484324347,0.84117473,103040.0,103030.0,0.98886641]
[1747484324645,0.96777157,103040.0,103030.0,0.21351281]
[1747484324834,1.31482757,103040.0,103030.0,0.27365489]
[1747484325234,1.28474334,103040.0,103030.0,0.27365489]
[1747484325845,0.84117473,103040.0,103030.0,0.5642211]
[1747484326347,0.64714003,103040.0,103030.0,0.5970211]
[1747484326531,0.84117483,103040.0,103030.0,0.6288211]
[1747484327237,0.84117483,103040.0,103030.0,0.6591211]
[1747484328048,0.84117483,103040.0,103030.0,0.57283517]
[1747484328642,0.84117483,103040.0,103030.0,0.52755844]
[1747484328838,0.84117483,103040.0,103030.0,0.46741636]
[1747484329040,0.61634003,103040.0,103030.0,0.46741636]
[1747484329440,0.25554003,103040.0,103030.0,0.82821636]
[1747484332143,0.25554003,103040.0,103030.0,0.80152932]
[1747484332451,0.25554003,103040.0,103030.0,0.89804193]
[1747484332949,0.25554003,103040.0,103030.0,0.53724193]
[1747484333142,0.25554003,103040.0,103030.0,0.89804193]
[1747484334952,0.25554003,103040.0,103030.0,1.10708193]
[1747484335954,0.25554003,103040.0,103030.0,1.16911713]
[1747484336152,0.25554003,103040.0,103030.0,1.37823713]
[1747484336348,0.44957473,103040.0,103030.0,1.37823713]
[1747484336953,0.44957473,103040.0,103030.0,1.01743713]
[1747484337146,0.44957473,103040.0,103030.0,1.37823713]
[1747484340259,0.44957473,103040.0,103030.0,1.01743713]
[1747484340454,0.44957473,103040.0,103030.0,1.37823713]
[1747484340857,0.25554003,103040.0,103030.0,1.37823713]
[1747484341450,0.19234003,103040.0,103030.0,1.37823713]
[1747484341650,0.14462813,103040.0,103030.0,2.60887713]
[1747484341856,0.10790519,103040.0,103030.0,2.70593313]
[1747484342251,0.00544216,103040.0,103030.0,2.70593313]
[1747484343361,0.00544216,103040.0,103030.0,2.87076373]
[1747484343556,0.00544216,103040.0,103030.0,2.77370773]
[1747484343747,0.00544216,103040.0,103030.0,2.77564882]
[1747484344461,0.00544216,103040.0,103030.0,3.22169925]
[1747484347954,0.00544216,103040.0,103030.0,3.10158867]
[1747484349050,0.00544216,103040.0,103030.0,2.37998867]
[1747484349257,0.00544216,103040.0,103030.0,3.10458867]
[1747484349769,0.0619,103050.0,103040.0,0.1940347]
[1747484349967,0.0619,103050.0,103040.0,0.74784731]
[1747484350265,0.2419,103050.0,103040.0,0.89839257]
[1747484351859,0.2419,103050.0,103040.0,0.89939257]
[1747484352568,0.2419,103050.0,103040.0,0.91466216]
[1747484353363,0.2419,103050.0,103040.0,0.85430905]
[1747484354569,0.2419,103050.0,103040.0,0.7578914]
[1747484354867,0.2419,103050.0,103040.0,0.85430905]
[1747484355258,0.2419,103050.0,103040.0,0.8844399]
[1747484356167,0.18,103050.0,103040.0,1.2616531]
[1747484356971,0.18,103050.0,103040.0,1.26163282]
[1747484357876,0.18,103050.0,103040.0,1.19836533]
[1747484358071,0.2124,103050.0,103040.0,1.19836607]
[1747484358569,0.2124,103050.0,103040.0,1.61528607]
[1747484359371,0.2124,103050.0,103040.0,1.58516939]
[1747484359966,0.2124,103050.0,103040.0,1.58524939]
[1747484360171,0.44485806,103050.0,103040.0,1.02656552]
[1747484360364,0.44485806,103050.0,103040.0,1.12050718]
[1747484360365,0.47505806,103050.0,103040.0,1.12050718]
[1747484360567,0.47505806,103050.0,103040.0,1.21708622]
[1747484363485,0.47505806,103050.0,103040.0,1.06673636]
[1747484364074,0.47505806,103050.0,103040.0,0.85809636]
[1747484364269,0.47505806,103050.0,103040.0,1.06657636]
[1747484364470,0.47505806,103050.0,103040.0,1.06661636]
[1747484364672,0.83585806,103050.0,103040.0,0.50645277]
[1747484364874,0.83585806,103050.0,103040.0,0.64159722]
[1747484365174,0.83585806,103050.0,103040.0,0.85015722]
[1747484367075,0.83585806,103050.0,103040.0,0.8052299]
[1747484367676,0.83585806,103050.0,103040.0,0.3880699]
[1747484367877,0.83585806,103050.0,103040.0,0.8050299]
[1747484368578,0.83585806,103050.0,103040.0,0.79230153]
[1747484371578,0.47505806,103050.0,103040.0,0.79230153]
[1747484371781,0.83585806,103050.0,103040.0,0.79230153]
[1747484372471,0.83585806,103050.0,103040.0,0.58394153]
[1747484372771,0.83585806,103050.0,103040.0,0.79222153]
[1747484374081,0.83585806,103050.0,103040.0,0.58394153]
[1747484374378,0.83585806,103050.0,103040.0,0.79210153]
[1747484374579,0.83585806,103050.0,103040.0,0.79206153]
[1747484374977,0.83585806,103050.0,103040.0,0.88852445]
[1747484375182,0.83585806,103050.0,103040.0,0.92122445]
[1747484375681,0.83585806,103050.0,103040.0,0.95132445]
[1747484375869,0.83585806,103050.0,103040.0,0.98412445]
[1747484377979,0.83585806,103050.0,103040.0,0.98408445]
[1747484378983,0.83585806,103050.0,103040.0,0.88762153]
[1747484379284,0.83585806,103050.0,103040.0,0.98408445]
[1747484381284,0.83585806,103050.0,103040.0,0.95091761]
[1747484384778,0.47505806,103050.0,103040.0,0.95091761]
[1747484384979,0.83585806,103050.0,103040.0,0.95091761]
[1747484386890,0.83585806,103050.0,103040.0,0.53423761]
[1747484387191,0.83585806,103050.0,103040.0,0.95019761]
[1747484388288,0.83585806,103050.0,103040.0,0.99448114]
[1747484388486,0.80565806,103050.0,103040.0,1.05777722]
[1747484388696,0.54624216,103050.0,103040.0,1.05777722]
[1747484388990,0.18544216,103050.0,103040.0,1.41857722]
[1747484389294,0.00544216,103050.0,103040.0,1.41857722]
[1747484389790,0.00544216,103050.0,103040.0,1.43281856]
[1747484390292,0.18544216,103050.0,103040.0,1.43281856]
[1747484391789,0.18544216,103050.0,103040.0,0.96429067]
[1747484391991,0.77155806,103050.0,103040.0,1.00740269]
[1747484392287,0.80375806,103050.0,103040.0,1.21576269]
[1747484392592,0.80375806,103050.0,103040.0,0.86245877]
[1747484392791,0.83495806,103050.0,103040.0,0.86245877]
[1747484393593,0.83495806,103050.0,103040.0,1.27901877]
[1747484395296,0.83495806,103050.0,103040.0,1.31216024]
[1747484395986,0.83495806,103050.0,103040.0,1.16181038]
[1747484396699,0.83495806,103050.0,103040.0,1.06537283]
[1747484397494,0.83495806,103050.0,103040.0,0.60011813]
[1747484397691,0.83495806,103050.0,103040.0,1.00259283]
[1747484400296,0.83495806,103050.0,103040.0,1.03289283]
[1747484400494,0.83495806,103050.0,103040.0,0.98757067]
[1747484400800,0.83495806,103050.0,103040.0,1.08400822]
[1747484400998,0.18544216,103050.0,103040.0,1.47500822]
[1747484401185,0.18544216,103050.0,103040.0,1.40102578]
[1747484403199,0.00544216,103050.0,103040.0,1.40102578]
[1747484403801,0.00544216,103050.0,103040.0,1.50670105]
[1747484404798,0.00544216,103050.0,103040.0,1.29826105]
[1747484405104,0.40985806,103050.0,103040.0,1.14598105]
[1747484405401,0.80205806,103050.0,103040.0,1.0496235]
[1747484405596,0.80205806,103050.0,103040.0,0.72922105]
[1747484405804,0.83295806,103050.0,103040.0,1.14606105]
[1747484406001,0.83295806,103050.0,103040.0,1.14602105]
[1747484406505,0.83295806,103050.0,103040.0,1.15830593]
[1747484406999,0.47215806,103050.0,103040.0,1.15830593]
[1747484407204,0.44125806,103050.0,103040.0,1.09795282]
[1747484407509,0.21584216,103050.0,103040.0,1.45875282]
[1747484407997,0.18544216,103050.0,103040.0,1.45875282]
[1747484411709,0.18544216,103050.0,103040.0,1.60910268]
[1747484413405,0.18544216,103050.0,103040.0,1.51266513]
[1747484413599,0.24834216,103050.0,103040.0,1.60910268]
[1747484413804,0.44235796,103050.0,103040.0,1.60994268]
[1747484414005,0.24834216,103050.0,103040.0,1.60994268]
[1747484414511,0.24834216,103050.0,103040.0,1.67191328]
[1747484415311,0.18544216,103050.0,103040.0,1.67191328]
[1747484415805,0.18544216,103050.0,103040.0,1.58191653]
[1747484416412,0.24954216,103050.0,103040.0,1.58191653]
[1747484417911,0.24954216,103050.0,103040.0,1.16427653]
[1747484418107,0.24954216,103050.0,103040.0,1.58219653]
[1747484418307,0.24954216,103050.0,103040.0,1.16427653]
[1747484418510,0.24954216,103050.0,103040.0,1.58215653]
[1747484420808,0.24954216,103050.0,103040.0,1.52052299]
[1747484421016,0.24954216,103050.0,103040.0,1.59397854]
[1747484421316,0.40644055,103050.0,103040.0,1.28842099]
[1747484421509,0.76724055,103050.0,103040.0,1.13662099]
[1747484421710,0.80044055,103050.0,103040.0,1.13694099]
[1747484421915,0.44508271,103050.0,103040.0,1.13694099]
[1747484422315,0.44508271,103050.0,103040.0,1.13690099]
[1747484422708,0.44508271,103050.0,103040.0,1.23333854]
[1747484425922,0.41188271,103050.0,103040.0,1.23333854]
[1747484426121,0.44228271,103050.0,103040.0,1.23333854]
[1747484427521,0.44228261,103050.0,103040.0,1.23333854]
[1747484427723,0.44228261,103050.0,103040.0,1.22169823]
[1747484431423,0.44228261,103050.0,103040.0,1.31169498]
[1747484432622,0.44228261,103050.0,103040.0,1.25003974]
[1747484433125,0.44228261,103050.0,103040.0,0.94416219]
[1747484433322,0.44228261,103050.0,103040.0,0.91396219]
[1747484433522,0.44228261,103050.0,103040.0,1.12332219]
[1747484433723,0.99595771,103050.0,103040.0,0.30392615]
[1747484434019,1.34300171,103050.0,103040.0,0.30392615]
[1747484434422,1.24656416,103050.0,103040.0,0.30392615]
[1747484436121,0.99656416,103050.0,103040.0,0.30392615]
[1747484436331,0.99656416,103050.0,103040.0,0.2580053]
[1747484436723,0.80308261,103050.0,103040.0,0.35444285]
[1747484436925,0.80308261,103050.0,103040.0,0.38714285]
[1747484437635,0.80308261,103050.0,103040.0,0.3220053]
[1747484438332,0.80308261,103050.0,103040.0,0.5318053]
[1747484438536,0.80308261,103050.0,103040.0,0.50685349]
[1747484440032,0.80308261,103050.0,103040.0,0.52109289]
[1747484441534,0.80308261,103050.0,103040.0,0.55349289]
[1747484442731,0.80308261,103050.0,103040.0,0.34369289]
[1747484443035,0.99656416,103050.0,103040.0,0.03901879]
[1747484444143,0.99656416,103050.0,103040.0,0.03801879]
[1747484444332,0.99756416,103050.0,103040.0,0.03701879]
[1747484444637,0.99856416,103050.0,103040.0,0.03701879]
[1747484446843,1.1195211,103050.0,103040.0,0.03701879]
[1747484448942,0.1940347,103040.0,103030.0,0.36073608]
[1747484449144,0.92447225,103040.0,103030.0,0.36073608]
[1747484450139,0.92447225,103040.0,103030.0,0.39323608]
[1747484450343,0.2402,103040.0,103030.0,0.73029363]
[1747484450542,0.2402,103040.0,103030.0,0.73129363]
[1747484450543,0.4342347,103040.0,103030.0,0.73129363]
[1747484452146,0.4342347,103040.0,103030.0,0.74363323]
[1747484452347,0.4352347,103040.0,103030.0,0.74263323]
[1747484452646,0.4362347,103040.0,103030.0,0.74163323]
[1747484453148,0.4362347,103040.0,103030.0,0.64519568]
[1747484453837,0.89347225,103040.0,103030.0,0.38696248]
[1747484454039,0.92527225,103040.0,103030.0,0.38696248]
[1747484454536,0.92527225,103040.0,103030.0,0.33845048]
[1747484455446,0.92527225,103040.0,103030.0,0.14439948]
[1747484455649,0.92527225,103040.0,103030.0,0.33845298]
[1747484457653,0.8288347,103040.0,103030.0,0.33845298]
[1747484459954,0.8288347,103040.0,103030.0,0.54769298]
[1747484461653,0.8288347,103040.0,103030.0,0.14439948]
[1747484461952,0.1940535,103030.0,103020.0,0.06169799]
[1747484462253,1.31985505,103030.0,103020.0,9e-08]
[1747484462451,1.56985505,103030.0,103020.0,9e-08]
[1747484463057,1.56985505,103030.0,103020.0,0.00100009]
[1747484463058,1.77957505,103030.0,103020.0,0.00100009]
[1747484463244,1.31985505,103030.0,103020.0,0.00100009]
[1747484463565,1.33985505,103030.0,103020.0,0.00200009]
[1747484463740,1.33985505,103030.0,103020.0,9e-08]
[1747484464146,1.54957505,103030.0,103020.0,9e-08]
[1747484464552,1.56410609,103030.0,103020.0,9e-08]
[1747484464959,1.09718225,103030.0,103020.0,0.19407249]
[1747484465152,1.1936198,103030.0,103020.0,0.09340009]
[1747484465348,1.1936198,103030.0,103020.0,0.0934]
[1747484465548,1.1956198,103030.0,103020.0,0.0934]
[1747484466055,1.1976198,103030.0,103020.0,0.0934]
[1747484466656,1.1996198,103030.0,103020.0,0.0934]
[1747484467058,1.1996198,103030.0,103020.0,0.2874724]